[Event "WTCC-65 2018"]
[Site "Radebeul"]
[Date "2018.07.11"]
[Round "5"]
[White "Stebbings, Anthony J"]
[Black "Weiss, Werner"]
[Result "0-1"]
[ECO "B07"]
[WhiteElo "2257"]
[BlackElo "2116"]
[Annotator "NA"]
[PlyCount "52"]
[EventDate "2018.07.07"]
[EventType "team-tourn"]
[EventCountry "GER"]
[SourceTitle "playchess.com"]
[Source "ChessBase"]
[SourceQuality "1"]
[TimeControl "40/5400+30:1800+30"]

1. d4 {[%emt 0:00:00]} d6 {[%emt 0:00:00]} 2. e4 {[%emt 0:00:00]} Nf6 {[%emt 0:00:00]} 3. Nc3 {[%emt 0:00:00]} e5 {[%emt 0:00:00]} 4. Nf3 {[%emt 0:00:24]} exd4 {[%emt 0:00:05]} 5. Nxd4 {[%emt 0:00:22]} Be7 {[%emt 0:00:07]} 6. Bc4 {[%emt 0:12:14]} O-O {[%emt 0:00:14]} 7. O-O {[%emt 0:00:18]} Re8 {[%emt 0:00:34]} 8. Re1 {[%emt 0:01:11]} Nbd7 {[%emt 0:05:27]} 9. a4 {[%emt 0:04:42]} c6 {[%emt 0:02:17]} 10. Nf5 {[%emt 0:02:17]} Ne5 {[%emt 0:00:17]} 11. Nxe7+ {[%emt 0:00:30]} Qxe7 {[%emt 0:00:07]} 12. Bf1 {[%emt 0:05:40]} Bg4 {[%emt 0:08:23]} 13. f3 {[%emt 0:02:11]} Bh5 {[%emt 0:00:07]} 14. h3 {[%emt 0:16:15]} d5 {[%emt 0:12:40]} 15. Bg5 {[%emt 0:04:41]} d4 {[%emt 0:06:25]} 16. Nb1 {[%emt 0:04:21]} Qc5 {[%emt 0:07:02]} 17. Bh4 {[%emt 0:14:35]} d3+ {[%emt 0:10:49]} 18. Bf2 {[%emt 0:00:06]} Qxc2 {[%emt 0:00:22]} 19. Qxc2 {[%emt 0:01:31]} dxc2 {[%emt 0:00:06]} 20. Nd2 {[%emt 0:07:52]} Rad8 {[%emt 0:01:28]} 21. Nc4 {[%emt 0:01:33]} Nxc4 {[%emt 0:12:21]} 22. Bxc4 {[%emt 0:00:01]} Nxe4 {[%emt 0:07:28]} 23. fxe4 {[%emt 0:02:02]} Rd1 {[%emt 0:00:43]} 24. Bb3 {[%emt 0:07:17]} Rxe4 {[%emt 0:02:26]} 25. Bxc2 {[%emt 0:00:50]} Rexe1+ {[%emt 0:00:13]} 26. Bxe1 {[%emt 0:00:12]} Rxa1 0-1

[Event "WTCC-65 2018"]
[Site "Radebeul"]
[Date "2018.07.11"]
[Round "5"]
[White "Bartsch, Berthold"]
[Black "Riesenbeck, Juergen"]
[Result "1-0"]
[ECO "A00"]
[WhiteElo "2248"]
[BlackElo "2092"]
[Annotator "NA"]
[PlyCount "81"]
[EventDate "2018.07.07"]
[EventType "team-tourn"]
[EventCountry "GER"]
[SourceTitle "playchess.com"]
[Source "ChessBase"]
[SourceQuality "1"]
[TimeControl "40/5400+30:1800+30"]

1. Nc3 {[%emt 0:00:00]} d5 {[%emt 0:00:00]} 2. e4 {[%emt 0:00:28]} d4 {[%emt 0:00:00]} 3. Nce2 {[%emt 0:00:03]} e5 {[%emt 0:00:11]} 4. d3 {[%emt 0:00:11]} Nc6 {[%emt 0:00:19]} 5. g3 {[%emt 0:00:07]} Nf6 {[%emt 0:00:14]} 6. Bg2 {[%emt 0:00:07]} Bc5 {[%emt 0:00:31]} 7. h3 {[%emt 0:01:31]} h6 {[%emt 0:00:12]} 8. f4 {[%emt 0:00:11]} exf4 {[%emt 0:01:50]} 9. gxf4 {[%emt 0:00:42]} Nh5 {[%emt 0:03:13]} 10. Nf3 {[%emt 0:00:37]} Qd6 {[%emt 0:02:17]} 11. O-O {[%emt 0:06:08]} Bd7 {[%emt 0:02:47]} 12. a3 {[%emt 0:00:15]} O-O-O {[%emt 0:03:29]} 13. Qe1 {[%emt 0:02:49]} g5 {[%emt 0:08:48]} 14. b4 {[%emt 0:03:30]} Bb6 {[%emt 0:00:52]} 15. b5 {[%emt 0:00:28]} Ne7 {[%emt 0:02:54]} 16. fxg5 {[%emt 0:00:39]} hxg5 {[%emt 0:00:29]} 17. Bxg5 {[%emt 0:15:43]} Rdg8 {[%emt 0:02:14]} 18. e5 {[%emt 0:03:10]} Qg6 {[%emt 0:03:08]} 19. h4 {[%emt 0:02:48]} Nf5 {[%emt 0:01:21]} 20. Qf2 {[%emt 0:00:26]} Ne3 {[%emt 0:00:43]} 21. a4 {[%emt 0:13:25]} Bc5 {[%emt 0:14:27]} 22. Rfc1 {[%emt 0:07:54]} Nxg2 {[%emt 0:20:39]} 23. Qxg2 {[%emt 0:03:08]} Qe6 {[%emt 0:03:44]} 24. c3 {[%emt 0:04:08]} dxc3+ {[%emt 0:01:23]} 25. d4 {[%emt 0:00:12]} Be7 {[%emt 0:00:47]} 26. Rxc3 {[%emt 0:00:51]} f6 {[%emt 0:01:36]} 27. exf6 {[%emt 0:00:41]} Bxf6 {[%emt 0:00:17]} 28. Rac1 {[%emt 0:01:04]} c6 {[%emt 0:04:48]} 29. Ne5 {[%emt 0:06:41]} Bxg5 {[%emt 0:04:40]} 30. hxg5 {[%emt 0:00:12]} Rxg5 {[%emt 0:00:18]} 31. Qxg5 {[%emt 0:00:51]} Rg8 {[%emt 0:00:02]} 32. Qxg8+ {[%emt 0:00:28]} Qxg8+ {[%emt 0:00:01]} 33. Kf2 {[%emt 0:00:16]} Qd5 {[%emt 0:08:43]} 34. bxc6 {[%emt 0:01:10]} bxc6 {[%emt 0:04:39]} 35. Nxc6 {[%emt 0:01:11]} Qf7+ {[%emt 0:02:09]} 36. Ke1 {[%emt 0:00:30]} Bxc6 {[%emt 0:01:19]} 37. Rxc6+ {[%emt 0:00:10]} Kb7 {[%emt 0:00:03]} 38. a5 {[%emt 0:02:14]} Qe8 {[%emt 0:01:58]} 39. a6+ {[%emt 0:00:41]} Kb8 {[%emt 0:00:12]} 40. Kd2 {[%emt 0:00:42]} Nf6 {[%emt 0:00:56]} 41. Rxf6 {[%emt 0:30:49]} 1-0

[Event "WTCC-65 2018"]
[Site "Radebeul"]
[Date "2018.07.11"]
[Round "5"]
[White "Ulrichsen, Jarl H"]
[Black "Nehmert, Ulrich"]
[Result "0-1"]
[ECO "D45"]
[WhiteElo "2196"]
[BlackElo "2220"]
[Annotator "NA"]
[PlyCount "96"]
[EventDate "2018.07.07"]
[EventType "team-tourn"]
[EventCountry "GER"]
[SourceTitle "playchess.com"]
[Source "ChessBase"]
[SourceQuality "1"]
[TimeControl "40/5400+30:1800+30"]

1. d4 {[%emt 0:00:00]} Nf6 {[%emt 0:00:00]} 2. Nf3 {[%emt 0:00:32]} d5 {[%emt 0:00:03]} 3. c4 {[%emt 0:02:49]} c6 {[%emt 0:00:28]} 4. Nc3 {[%emt 0:03:12]} e6 {[%emt 0:02:33]} 5. e3 {[%emt 0:01:49]} Be7 {[%emt 0:00:39]} 6. Bd3 {[%emt 0:00:26]} O-O {[%emt 0:00:58]} 7. O-O {[%emt 0:00:10]} Nbd7 {[%emt 0:02:19]} 8. Qe2 {[%emt 0:05:09]} Qc7 {[%emt 0:15:01]} 9. cxd5 {[%emt 0:17:12] D46: Semi-Slav: 5 e3 Nbd7 6 Bd3, Black avoids the Meran} (9. e4 dxe4 10. Nxe4 b6 {½-½ (10) Guidarelli,L (2422)-Stojanovic,M (2504) Obrenovac 2004}) 9... exd5 {[%emt 0:04:06]} 10. b3 $146 {[%emt 0:01:56]} ({Predecessor:} 10. Bd2 Re8 11. Rac1 Bd6 12. Nb5 Qb8 13. Nxd6 Qxd6 14. Bc3 b6 15. Qc2 Ne4 16. Rfe1 Nf8 {1-0 (35) Korell,K (1875)-Fock,S (1581) Berlin 2016}) 10... Re8 {[%emt 0:01:25]} 11. Bb2 {[%emt 0:00:53]} Bd6 {[%emt 0:05:02]} 12. Rac1 {[%emt 0:05:17]} Qd8 {[%emt 0:01:28]} 13. Bb1 {[%emt 0:10:01]} Nf8 {[%emt 0:02:42]} 14. h3 {[%emt 0:09:57]} Ng6 {[%emt 0:00:13]} 15. Bxg6 {[%emt 0:02:53]} hxg6 {[%emt 0:00:05]} 16. Na4 {[%emt 0:02:58]} Ne4 {[%emt 0:15:34]} 17. Nc5 {[%emt 0:05:22]} a5 {[%emt 0:17:26]} 18. Nxe4 {[%emt 0:19:10]} dxe4 {[%emt 0:00:24]} 19. Nd2 {[%emt 0:00:05]} Qg5 {[%emt 0:04:10]} 20. f4 {[%emt 0:01:34]} exf3 {[%emt 0:01:36]} 21. Rxf3 {[%emt 0:00:03]} a4 {[%emt 0:00:19]} 22. Nc4 {[%emt 0:00:31]} Bc7 {[%emt 0:01:07]} 23. b4 {[%emt 0:01:47]} Be6 {[%emt 0:00:29]} 24. Ne5 {[%emt 0:02:49]} a3 {[%emt 0:02:07]} 25. Ba1 {[%emt 0:00:30]} f6 {[%emt 0:02:51]} 26. Ng4 {[%emt 0:02:24]} Bd5 {[%emt 0:02:31]} 27. Rff1 {[%emt 0:00:22]} Bd6 {[%emt 0:05:20]} 28. Rc5 {[%emt 0:02:00]} Bxc5 {[%emt 0:01:50]} 29. dxc5 {[%emt 0:00:02]} Re6 {[%emt 0:00:25]} 30. Qf2 {[%emt 0:01:45]} Rae8 {[%emt 0:00:34]} 31. Bd4 {[%emt 0:00:10]} f5 {[%emt 0:02:01]} 32. Nh2 {[%emt 0:00:01]} Rxe3 {[%emt 0:00:24]} 33. Bxe3 {[%emt 0:01:15]} Qxe3 {[%emt 0:00:02]} 34. Nf3 {[%emt 0:00:39]} Bxf3 {[%emt 0:02:10]} 35. gxf3 {[%emt 0:00:45]} Qc3 {[%emt 0:02:08]} 36. Rd1 {[%emt 0:01:28]} Qxb4 {[%emt 0:00:48]} 37. Rd2 {[%emt 0:00:07]} Re5 {[%emt 0:03:22]} 38. Rc2 {[%emt 0:00:01]} g5 {[%emt 0:01:30]} 39. Kg2 {[%emt 0:00:29]} Kh7 {[%emt 0:00:08]} 40. Kh2 {[%emt 0:01:21]} Qe1 {[%emt 0:02:03]} 41. Kg2 {[%emt 0:03:46]} Kg6 {[%emt 0:03:20]} 42. Kg3 {[%emt 0:20:36]} Kf6 {[%emt 0:06:29]} 43. Kg2 {[%emt 0:01:50]} Re3 {[%emt 0:01:18]} 44. Kg3 {[%emt 0:02:43]} Ke5 {[%emt 0:03:06]} 45. Kg2 {[%emt 0:01:05]} f4 {[%emt 0:02:15]} 46. h4 {[%emt 0:02:37]} gxh4 {[%emt 0:00:20]} 47. Kh3 $19 {[%emt 0:00:09]} Kf5 {[%emt 0:01:36]} 48. Rd2 {[%emt 0:01:17]} Qh1+ {[%emt 0:00:35]} 0-1

[Event "WTCC-65 2018"]
[Site "Radebeul"]
[Date "2018.07.11"]
[Round "5"]
[White "Rosen, Willy"]
[Black "Baum, Bernd"]
[Result "1/2-1/2"]
[ECO "C11"]
[WhiteElo "2161"]
[BlackElo "2280"]
[Annotator "NA"]
[PlyCount "83"]
[EventDate "2018.07.07"]
[EventType "team-tourn"]
[EventCountry "GER"]
[SourceTitle "playchess.com"]
[Source "ChessBase"]
[SourceQuality "1"]
[TimeControl "40/5400+30:1800+30"]

1. e4 {[%emt 0:00:00]} e6 {[%emt 0:00:00]} 2. d4 {[%emt 0:00:00]} d5 {[%emt 0:00:00]} 3. Nc3 {[%emt 0:00:00]} Nf6 {[%emt 0:00:00]} 4. Bg5 {[%emt 0:00:00]} dxe4 {[%emt 0:00:00]} 5. Nxe4 {[%emt 0:00:04]} Nbd7 {[%emt 0:00:00]} 6. Nf3 $11 {[%emt 0:00:11]} h6 {[%emt 0:00:00]} 7. Nxf6+ {[%emt 0:00:34]} Nxf6 {[%emt 0:00:00]} 8. Bxf6 {[%emt 0:00:17]} Qxf6 {[%emt 0:00:00]} 9. Bb5+ {[%emt 0:00:36]} c6 {[%emt 0:00:12]} 10. Bd3 {[%emt 0:00:05]} Bd6 {[%emt 0:00:38]} 11. Qe2 {[%emt 0:00:12]} O-O {[%emt 0:02:04]} 12. O-O {[%emt 0:00:57]} c5 {[%emt 0:04:22]} 13. Qe4 {[%emt 0:04:44]} g6 {[%emt 0:01:38]} 14. h4 {[%emt 0:05:37]} h5 {[%emt 0:10:59]} 15. dxc5 {[%emt 0:02:29]} Bxc5 {[%emt 0:00:03]} 16. c3 {[%emt 0:04:39]} Rd8 {[%emt 0:02:08]} 17. Rad1 {[%emt 0:00:12]} Rb8 {[%emt 0:12:24]} 18. Qe5 {[%emt 0:09:47]} Qxe5 {[%emt 0:01:06]} 19. Nxe5 {[%emt 0:00:02]} Bd6 {[%emt 0:21:49]} 20. Be4 {[%emt 0:05:08]} Be7 {[%emt 0:03:02]} 21. g3 {[%emt 0:02:48]} Kf8 {[%emt 0:03:32]} 22. Rxd8+ {[%emt 0:02:01]} Bxd8 {[%emt 0:00:01]} 23. Rd1 {[%emt 0:00:14]} Ke7 {[%emt 0:04:35]} 24. Nxf7 {[%emt 0:00:28]} Bc7 {[%emt 0:12:02]} 25. Bxg6 {[%emt 0:03:05]} Bd7 {[%emt 0:01:50]} 26. Bxh5 {[%emt 0:01:55]} Be8 {[%emt 0:02:22]} 27. Bg6 {[%emt 0:06:48]} Rc8 {[%emt 0:02:08]} 28. Kg2 {[%emt 0:13:19]} Bxf7 {[%emt 0:00:35]} 29. Bxf7 {[%emt 0:00:44]} Kxf7 {[%emt 0:00:02]} 30. Rd7+ {[%emt 0:00:13]} Kg6 {[%emt 0:04:22]} 31. f4 {[%emt 0:01:38]} e5 {[%emt 0:03:30]} 32. fxe5 {[%emt 0:00:20]} Bxe5 {[%emt 0:00:03]} 33. Rxb7 {[%emt 0:00:28]} Rd8 {[%emt 0:00:50]} 34. Rxa7 {[%emt 0:05:11]} Rd2+ {[%emt 0:02:22]} 35. Kf3 {[%emt 0:00:08]} Rxb2 {[%emt 0:00:05]} 36. Ra6+ {[%emt 0:00:30]} Kf7 {[%emt 0:00:31]} 37. h5 {[%emt 0:04:08]} Bxc3 {[%emt 0:00:18]} 38. g4 {[%emt 0:03:19]} Rh2 {[%emt 0:03:26]} 39. a4 {[%emt 0:01:47]} Be1 {[%emt 0:01:43]} 40. a5 {[%emt 0:05:23]} Rf2+ {[%emt 0:01:41]} 41. Ke3 {[%emt 0:30:22]} Ra2 {[%emt 0:32:19]} 42. Ke4 {[%emt 0:04:38]} 1/2-1/2

[Event "WTCC-65 2018"]
[Site "Radebeul"]
[Date "2018.07.11"]
[Round "5"]
[White "Hammar, Bengt"]
[Black "Scovitin, Albert"]
[Result "1/2-1/2"]
[ECO "C14"]
[WhiteElo "2159"]
[BlackElo "2004"]
[Annotator "NA"]
[PlyCount "108"]
[EventDate "2018.07.07"]
[EventType "team-tourn"]
[EventCountry "GER"]
[SourceTitle "playchess.com"]
[Source "ChessBase"]
[SourceQuality "1"]
[TimeControl "40/5400+30:1800+30"]

1. e4 {[%emt 0:00:00]} e6 {[%emt 0:00:00]} 2. d4 {[%emt 0:00:00]} d5 {[%emt 0:00:00]} 3. Nc3 {[%emt 0:00:22]} Nf6 {[%emt 0:00:00]} 4. Bg5 {[%emt 0:01:58]} Be7 {[%emt 0:00:00]} 5. e5 {[%emt 0:00:05]} Nfd7 {[%emt 0:00:00]} 6. Bxe7 {[%emt 0:00:43]} Qxe7 {[%emt 0:00:00]} 7. f4 {[%emt 0:01:02]} a6 {[%emt 0:00:03]} 8. Nf3 {[%emt 0:01:05]} c5 {[%emt 0:00:10]} 9. Qd2 {[%emt 0:00:57]} Nc6 {[%emt 0:00:17]} 10. dxc5 {[%emt 0:00:57]} Nxc5 {[%emt 0:00:55]} 11. Bd3 {[%emt 0:01:24]} O-O {[%emt 0:06:12]} 12. O-O {[%emt 0:05:55]} f6 {[%emt 0:02:36]} 13. exf6 {[%emt 0:01:06]} Qxf6 {[%emt 0:00:40]} 14. Ne5 {[%emt 0:03:58]} Nxd3 15. Nxd3 Qd4+ {[%emt 0:19:50]} 16. Kh1 {[%emt 0:02:14]} Bd7 {[%emt 0:02:10]} 17. Rae1 {[%emt 0:02:44]} Rae8 {[%emt 0:01:00]} 18. Ne2 {[%emt 0:03:54]} Qf6 {[%emt 0:02:28]} 19. Ng3 {[%emt 0:01:51]} Bc8 {[%emt 0:01:00]} 20. Ne5 {[%emt 0:10:27]} Nxe5 {[%emt 0:00:31]} 21. Rxe5 {[%emt 0:00:27]} Rf7 {[%emt 0:00:45]} 22. Kg1 {[%emt 0:02:43]} Ref8 {[%emt 0:00:28]} 23. Rf3 {[%emt 0:02:13]} Qd8 {[%emt 0:02:04]} 24. Qd4 {[%emt 0:01:08]} Qc7 {[%emt 0:04:33]} 25. Rc3 {[%emt 0:05:42]} Qa5 {[%emt 0:00:50]} 26. Ra3 {[%emt 0:01:00]} Qb5 {[%emt 0:00:16]} 27. Ne2 {[%emt 0:03:24]} Rc7 {[%emt 0:03:30]} 28. Rc3 {[%emt 0:05:21]} Rxc3 {[%emt 0:02:15]} 29. Qxc3 {[%emt 0:00:18]} Qb6+ {[%emt 0:00:32]} 30. Nd4 {[%emt 0:02:32]} Bd7 {[%emt 0:00:31]} 31. Qe3 {[%emt 0:08:03]} Qxb2 {[%emt 0:02:02]} 32. h4 {[%emt 0:01:52]} Qxa2 {[%emt 0:02:23]} 33. Rg5 {[%emt 0:01:28]} Qb1+ {[%emt 0:07:35]} 34. Kh2 {[%emt 0:00:18]} Qb4 {[%emt 0:02:19]} 35. Nxe6 {[%emt 0:05:54]} Bxe6 {[%emt 0:00:24]} 36. Qxe6+ {[%emt 0:00:07]} Kh8 {[%emt 0:00:17]} 37. Rf5 {[%emt 0:00:50]} h6 {[%emt 0:02:33]} 38. c3 {[%emt 0:00:55]} Qc5 {[%emt 0:00:48]} 39. c4 {[%emt 0:04:00]} Rxf5 {[%emt 0:02:58]} 40. Qxf5 {[%emt 0:00:01]} Qxc4 {[%emt 0:00:12]} 41. Qf8+ {[%emt 0:31:30]} Kh7 {[%emt 0:30:09]} 42. Qf5+ {[%emt 0:00:12]} Kg8 {[%emt 0:00:36]} 43. Qe6+ {[%emt 0:00:06]} Kf8 {[%emt 0:02:34]} 44. Qd6+ {[%emt 0:00:26]} Ke8 {[%emt 0:02:32]} 45. Qe6+ {[%emt 0:00:07]} Kd8 {[%emt 0:03:03]} 46. Qg8+ {[%emt 0:00:07]} Kc7 {[%emt 0:00:09]} 47. Qxg7+ {[%emt 0:00:06]} Kb8 {[%emt 0:00:17]} 48. Qxh6 {[%emt 0:01:23]} d4 {[%emt 0:00:27]} 49. Qd6+ {[%emt 0:00:27]} Ka7 {[%emt 0:00:30]} 50. h5 {[%emt 0:01:46]} d3 {[%emt 0:00:11]} 51. h6 {[%emt 0:00:10]} Qc3 {[%emt 0:00:21]} 52. Qe5 {[%emt 0:09:27]} Qxe5 {[%emt 0:02:40]} 53. fxe5 {[%emt 0:00:03]} d2 {[%emt 0:00:08]} 54. h7 {[%emt 0:00:05]} d1=Q {[%emt 0:00:13]} 1/2-1/2

[Event "WTCC-65 2018"]
[Site "Radebeul"]
[Date "2018.07.11"]
[Round "5"]
[White "Dekan, Hans"]
[Black "Seret, Jean-Luc"]
[Result "1/2-1/2"]
[ECO "B00"]
[WhiteElo "2134"]
[BlackElo "2353"]
[Annotator "NA"]
[PlyCount "41"]
[EventDate "2018.07.07"]
[EventType "team-tourn"]
[EventCountry "GER"]
[SourceTitle "playchess.com"]
[Source "ChessBase"]
[SourceQuality "1"]
[TimeControl "40/5400+30:1800+30"]

1. e4 {[%emt 0:00:00]} b6 {[%emt 0:00:00]} 2. d4 {[%emt 0:00:58]} Bb7 {[%emt 0:00:00]} 3. Nc3 {[%emt 0:00:21]} e6 {[%emt 0:00:14]} 4. Nf3 {[%emt 0:02:35]} Bb4 {[%emt 0:00:37]} 5. Bd3 {[%emt 0:05:17]} Nf6 {[%emt 0:01:54]} 6. Qe2 {[%emt 0:01:27]} d5 {[%emt 0:02:52]} 7. exd5 {[%emt 0:08:37]} Qxd5 {[%emt 0:03:10]} 8. O-O {[%emt 0:10:02]} Bxc3 {[%emt 0:03:05]} 9. bxc3 {[%emt 0:00:09]} Nbd7 {[%emt 0:10:25]} 10. c4 {[%emt 0:04:52]} Qh5 {[%emt 0:00:28]} 11. Bf4 {[%emt 0:09:59]} c5 {[%emt 0:07:45]} 12. d5 {[%emt 0:05:14]} O-O {[%emt 0:01:57]} 13. dxe6 {[%emt 0:04:17]} fxe6 {[%emt 0:13:49]} 14. Ne5 {[%emt 0:08:42]} Qxe2 {[%emt 0:11:54]} 15. Bxe2 {[%emt 0:00:14]} Nxe5 {[%emt 0:00:56]} 16. Bxe5 {[%emt 0:00:12]} Be4 {[%emt 0:00:39]} 17. Rac1 {[%emt 0:09:48]} Kf7 {[%emt 0:05:26]} 18. f3 {[%emt 0:01:00]} Bg6 {[%emt 0:01:12]} 19. Kf2 {[%emt 0:03:17]} Rfd8 {[%emt 0:01:51]} 20. Ke1 Ke8 21. Rh1 1/2-1/2

[Event "WTCC-65 2018"]
[Site "Radebeul"]
[Date "2018.07.11"]
[Round "5"]
[White "Bosbach, Gerhard"]
[Black "Steedman, James"]
[Result "1/2-1/2"]
[ECO "A20"]
[WhiteElo "2119"]
[BlackElo "2132"]
[Annotator "NA"]
[PlyCount "29"]
[EventDate "2018.07.07"]
[EventType "team-tourn"]
[EventCountry "GER"]
[SourceTitle "playchess.com"]
[Source "ChessBase"]
[SourceQuality "1"]
[TimeControl "40/5400+30:1800+30"]

1. c4 {[%emt 0:00:00]} e5 {[%emt 0:00:00]} 2. g3 {[%emt 0:00:01]} Nf6 {[%emt 0:00:12]} 3. Bg2 {[%emt 0:00:13]} c6 {[%emt 0:00:39]} 4. Nc3 {[%emt 0:01:20]} d5 {[%emt 0:00:18]} 5. cxd5 {[%emt 0:02:10]} cxd5 {[%emt 0:00:14]} 6. Qb3 {[%emt 0:01:23]} Nc6 {[%emt 0:00:33]} 7. Nxd5 {[%emt 0:08:30]} Nd4 {[%emt 0:01:22]} 8. Nxf6+ {[%emt 0:02:30]} gxf6 {[%emt 0:00:34]} 9. Qd1 {[%emt 0:08:16]} Qc7 {[%emt 0:06:14]} 10. Kf1 {[%emt 0:03:08]} Bf5 {[%emt 0:02:21]} 11. d3 {[%emt 0:01:31]} Rc8 {[%emt 0:03:36]} 12. Bd2 {[%emt 0:01:49]} Qc2 {[%emt 0:01:56]} 13. Bc3 {[%emt 0:09:09]} Qxd1+ {[%emt 0:03:35]} 14. Rxd1 {[%emt 0:01:56]} Nb5 {[%emt 0:02:25]} 15. Rc1 {[%emt 0:23:27]} 1/2-1/2

[Event "WTCC-65 2018"]
[Site "Radebeul"]
[Date "2018.07.11"]
[Round "5"]
[White "Mueller-Clostermann, Bruno"]
[Black "Kierzek, Matthias"]
[Result "1/2-1/2"]
[ECO "A06"]
[WhiteElo "2114"]
[BlackElo "2247"]
[Annotator "NA"]
[PlyCount "71"]
[EventDate "2018.07.07"]
[EventType "team-tourn"]
[EventCountry "GER"]
[SourceTitle "playchess.com"]
[Source "ChessBase"]
[SourceQuality "1"]
[TimeControl "40/5400+30:1800+30"]

1. Nf3 {[%emt 0:00:00]} d5 {[%emt 0:00:00]} 2. g3 {[%emt 0:00:00]} Bg4 {[%emt 0:00:29]} 3. Bg2 {[%emt 0:00:13]} Nd7 {[%emt 0:00:30]} 4. c4 {[%emt 0:01:07]} e6 {[%emt 0:02:25]} 5. O-O {[%emt 0:02:23]} Ngf6 {[%emt 0:00:50]} 6. b3 {[%emt 0:05:57]} Be7 {[%emt 0:02:54]} 7. Bb2 {[%emt 0:00:35]} O-O {[%emt 0:01:17]} 8. h3 {[%emt 0:04:36]} Bf5 {[%emt 0:09:55]} 9. d3 {[%emt 0:03:39]} h6 {[%emt 0:01:05]} 10. Nbd2 {[%emt 0:06:02]} c6 {[%emt 0:05:42]} 11. Re1 {[%emt 0:04:53]} Bh7 {[%emt 0:02:05]} 12. a3 {[%emt 0:02:20]} a5 {[%emt 0:00:18]} 13. Ra2 {[%emt 0:00:34]} Nc5 {[%emt 0:06:32]} 14. Ne5 {[%emt 0:05:56]} Bd6 {[%emt 0:06:16]} 15. Qa1 {[%emt 0:01:40]} a4 {[%emt 0:01:19]} 16. b4 {[%emt 0:02:06]} Nb3 {[%emt 0:02:54]} 17. Qd1 {[%emt 0:00:10]} d4 {[%emt 0:03:56]} 18. Nef3 {[%emt 0:04:16]} Nxd2 19. Qxd2 {[%emt 0:04:36]} c5 {[%emt 0:06:58]} 20. e3 {[%emt 0:06:17]} dxe3 {[%emt 0:06:20]} 21. Rxe3 {[%emt 0:00:52]} Qe7 {[%emt 0:01:01]} 22. bxc5 {[%emt 0:04:12]} Bxc5 {[%emt 0:00:10]} 23. d4 {[%emt 0:00:35]} Rfd8 {[%emt 0:01:32]} 24. Qe2 {[%emt 0:05:58]} Bb6 {[%emt 0:01:42]} 25. Bc3 {[%emt 0:03:34]} Qc7 {[%emt 0:01:16]} 26. Rd2 {[%emt 0:04:28]} Ba5 {[%emt 0:06:18]} 27. Ne5 {[%emt 0:02:33]} Bxc3 {[%emt 0:01:33]} 28. Rxc3 {[%emt 0:00:58]} Qb6 {[%emt 0:02:28]} 29. d5 {[%emt 0:06:17]} Qa5 {[%emt 0:10:10]} 30. Rc1 {[%emt 0:05:51]} exd5 {[%emt 0:06:54]} 31. cxd5 {[%emt 0:00:14]} Nxd5 {[%emt 0:02:04]} 32. Rcd1 {[%emt 0:03:13]} Nf6 {[%emt 0:05:28]} 33. Rxd8+ {[%emt 0:00:31]} Rxd8 {[%emt 0:00:02]} 34. Rxd8+ {[%emt 0:00:15]} Qxd8 {[%emt 0:00:03]} 35. Bxb7 {[%emt 0:02:32]} Qc7 {[%emt 0:01:08]} 36. Qb2 {[%emt 0:04:27]} 1/2-1/2

[Event "WTCC-65 2018"]
[Site "Radebeul"]
[Date "2018.07.11"]
[Round "5"]
[White "Romcovici, Victor"]
[Black "Wahlbom, Magnus"]
[Result "1-0"]
[ECO "A45"]
[WhiteElo "2114"]
[BlackElo "2172"]
[Annotator "NA"]
[PlyCount "93"]
[EventDate "2018.07.07"]
[EventType "team-tourn"]
[EventCountry "GER"]
[SourceTitle "playchess.com"]
[Source "ChessBase"]
[SourceQuality "1"]
[TimeControl "40/5400+30:1800+30"]

1. d4 {[%emt 0:00:00]} Nf6 {[%emt 0:00:00]} 2. Bg5 {[%emt 0:00:00]} g6 {[%emt 0:00:00]} 3. Nc3 {[%emt 0:00:06]} Bg7 {[%emt 0:01:47]} 4. e4 {[%emt 0:00:06]} c5 {[%emt 0:09:57]} 5. e5 {[%emt 0:03:33]} Ng8 {[%emt 0:00:07]} 6. Nf3 {[%emt 0:03:52]} cxd4 {[%emt 0:00:23]} 7. Qxd4 {[%emt 0:00:08]} Nc6 {[%emt 0:01:52]} 8. Qe3 {[%emt 0:05:50]} f6 {[%emt 0:14:27]} 9. exf6 {[%emt 0:01:28]} Nxf6 {[%emt 0:00:10]} 10. Bc4 {[%emt 0:01:58]} Na5 {[%emt 0:07:01]} 11. Bd5 {[%emt 0:12:23]} Nxd5 {[%emt 0:13:09]} 12. Nxd5 {[%emt 0:00:18]} Nc6 {[%emt 0:00:04]} 13. O-O-O {[%emt 0:00:59]} h6 {[%emt 0:02:25]} 14. Bxe7 {[%emt 0:05:52]} Nxe7 {[%emt 0:00:26]} 15. Rhe1 {[%emt 0:00:14]} O-O {[%emt 0:03:49]} 16. Nxe7+ {[%emt 0:00:40]} Kh7 {[%emt 0:00:06]} 17. Qd3 {[%emt 0:11:19]} Qb6 {[%emt 0:01:45]} 18. c3 {[%emt 0:02:42]} d5 {[%emt 0:00:37]} 19. Rd2 {[%emt 0:13:06]} Bf5 {[%emt 0:07:32]} 20. Nxf5 {[%emt 0:00:09]} Rxf5 {[%emt 0:00:08]} 21. Nd4 {[%emt 0:00:37]} Re5 {[%emt 0:11:22]} 22. Rxe5 {[%emt 0:03:33]} Bxe5 {[%emt 0:00:13]} 23. g3 {[%emt 0:00:05]} Rc8 {[%emt 0:03:02]} 24. f4 {[%emt 0:00:29]} Bf6 {[%emt 0:00:13]} 25. h4 {[%emt 0:02:33]} h5 {[%emt 0:01:37]} 26. Kb1 {[%emt 0:00:43]} Re8 {[%emt 0:04:02]} 27. f5 {[%emt 0:05:18]} Bxd4 {[%emt 0:00:47]} 28. fxg6+ {[%emt 0:01:48]} Qxg6 {[%emt 0:00:10]} 29. Qxg6+ {[%emt 0:00:05]} Kxg6 {[%emt 0:00:09]} 30. Rxd4 {[%emt 0:00:04]} Re5 {[%emt 0:01:34]} 31. Kc1 {[%emt 0:03:00]} Kf6 {[%emt 0:05:00]} 32. Kd2 {[%emt 0:01:17]} Ke6 {[%emt 0:00:44]} 33. g4 {[%emt 0:00:36]} hxg4 {[%emt 0:00:48]} 34. Rxg4 {[%emt 0:00:08]} Kd6 {[%emt 0:00:56]} 35. a4 {[%emt 0:01:07]} a5 {[%emt 0:02:19]} 36. Kd3 {[%emt 0:00:53]} Re1 {[%emt 0:00:17]} 37. Rg6+ {[%emt 0:02:30]} Kc5 {[%emt 0:00:58]} 38. h5 {[%emt 0:07:57]} Rh1 {[%emt 0:00:19]} 39. Rg5 {[%emt 0:07:00]} Rh2 {[%emt 0:03:09]} 40. b3 {[%emt 0:00:09]} b6 {[%emt 0:02:31]} 41. c4 {[%emt 0:33:14]} Rh3+ {[%emt 0:30:36]} 42. Kc2 {[%emt 0:01:33]} Rh2+ {[%emt 0:00:00]} 43. Kd1 {[%emt 0:00:00]} Kb4 {[%emt 0:00:00]} 44. cxd5 {[%emt 0:00:00]} Kc5 {[%emt 0:00:00]} 45. Ke1 {[%emt 0:00:00]} Rh3 {[%emt 0:00:00]} 46. d6+ {[%emt 0:00:00]} Kxd6 {[%emt 0:00:00]} 47. Rb5 {[%emt 0:00:00] Kd5} 1-0